Workbook

Sheet Siječanj
A1: SIJEČANJ
A2: Internetska prodaja | C2: ID dražbe | D2: Opis artikla | E2: Nabavna cijena | F2: Prodajna cijena | G2: Online fees | H2: Naknade za PayPal | I2: Naknade za kreditnu karticu | J2: Naplata isporuke | K2: Naknade za isporuku | L2: Dobit/gubitak od prodaje | M2: Dobit/gubitak od isporuke | N2: Ukupna dobit/gubitak
A3: Godina | C3: TS001 | D3: Artikl 1 | E3: 5.00 kn | F3: 4.00 kn | G3: 2.00 kn | H3: 1.50 kn | I3: 0.00 kn | J3: 4.00 kn | K3: 2.00 kn | L3: =IFERROR(ProdajaSiječanj[Prodajna cijena]-(ProdajaSiječanj[Nabavna cijena]+ProdajaSiječanj[Online fees]+ProdajaSiječanj[Naknade za PayPal]+ProdajaSiječanj[Naknade za kreditnu karticu]),"") -> -4.50 kn | M3: =ProdajaSiječanj[Naplata isporuke]-ProdajaSiječanj[Naknade za isporuku] -> 2.00 kn | N3: =ProdajaSiječanj[Dobit/gubitak od prodaje]+ProdajaSiječanj[Dobit/gubitak od isporuke] -> -2.50 kn
A4: 2012 | C4: TP004 | D4: Artikl 2 | E4: 2.00 kn | F4: 30.00 kn | G4: 0.50 kn | H4: 0.50 kn | J4: 4.00 kn | K4: 5.50 kn | L4: =IFERROR(ProdajaSiječanj[Prodajna cijena]-(ProdajaSiječanj[Nabavna cijena]+ProdajaSiječanj[Online fees]+ProdajaSiječanj[Naknade za PayPal]+ProdajaSiječanj[Naknade za kreditnu karticu]),"") -> 27.00 kn | M4: =ProdajaSiječanj[Naplata isporuke]-ProdajaSiječanj[Naknade za isporuku] -> -1.50 kn | N4: =ProdajaSiječanj[Dobit/gubitak od prodaje]+ProdajaSiječanj[Dobit/gubitak od isporuke] -> 25.50 kn
C5: RS99 | D5: Artikl 3 | E5: 17.00 kn | F5: 23.00 kn | G5: 2.00 kn | I5: 2.00 kn | J5: 3.00 kn | K5: 2.00 kn | L5: =IFERROR(ProdajaSiječanj[Prodajna cijena]-(ProdajaSiječanj[Nabavna cijena]+ProdajaSiječanj[Online fees]+ProdajaSiječanj[Naknade za PayPal]+ProdajaSiječanj[Naknade za kreditnu karticu]),"") -> 2.00 kn | M5: =ProdajaSiječanj[Naplata isporuke]-ProdajaSiječanj[Naknade za isporuku] -> 1.00 kn | N5: =ProdajaSiječanj[Dobit/gubitak od prodaje]+ProdajaSiječanj[Dobit/gubitak od isporuke] -> 3.00 kn
A6: Ukupna dobit/gubitak | C6: ST001 | D6: Artikl 4 | E6: 120.00 kn | F6: 180.00 kn | G6: 2.00 kn | H6: 1.50 kn | J6: 3.00 kn | K6: 2.00 kn | L6: =IFERROR(ProdajaSiječanj[Prodajna cijena]-(ProdajaSiječanj[Nabavna cijena]+ProdajaSiječanj[Online fees]+ProdajaSiječanj[Naknade za PayPal]+ProdajaSiječanj[Naknade za kreditnu karticu]),"") -> 56.50 kn | M6: =ProdajaSiječanj[Naplata isporuke]-ProdajaSiječanj[Naknade za isporuku] -> 1.00 kn | N6: =ProdajaSiječanj[Dobit/gubitak od prodaje]+ProdajaSiječanj[Dobit/gubitak od isporuke] -> 57.50 kn
A7: =ProdajaSiječanj[[#Totals],[Ukupna dobit/gubitak]] -> 89.00 kn | C7: ST001 | D7: Artikl 5 | E7: 10.00 kn | F7: 12.00 kn | G7: 2.00 kn | H7: 1.50 kn | J7: 14.00 kn | K7: 7.00 kn | L7: =IFERROR(ProdajaSiječanj[Prodajna cijena]-(ProdajaSiječanj[Nabavna cijena]+ProdajaSiječanj[Online fees]+ProdajaSiječanj[Naknade za PayPal]+ProdajaSiječanj[Naknade za kreditnu karticu]),"") -> -1.50 kn | M7: =ProdajaSiječanj[Naplata isporuke]-ProdajaSiječanj[Naknade za isporuku] -> 7.00 kn | N7: =ProdajaSiječanj[Dobit/gubitak od prodaje]+ProdajaSiječanj[Dobit/gubitak od isporuke] -> 5.50 kn
C8: Ukupno | D8: ="Prodani artikli: "&SUBTOTAL(103,ProdajaSiječanj[Opis artikla]) -> Prodani artikli: 5 | E8: =SUBTOTAL(109,ProdajaSiječanj[Nabavna cijena]) -> 154.00 kn | F8: =SUBTOTAL(109,ProdajaSiječanj[Prodajna cijena]) -> 249.00 kn | G8: =SUBTOTAL(109,ProdajaSiječanj[Online fees]) -> 8.50 kn | H8: =SUBTOTAL(109,ProdajaSiječanj[Naknade za PayPal]) -> 5.00 kn | I8: =SUBTOTAL(109,ProdajaSiječanj[Naknade za kreditnu karticu]) -> 2.00 kn | J8: =SUBTOTAL(109,ProdajaSiječanj[Naplata isporuke]) -> 28.00 kn | K8: =SUBTOTAL(109,ProdajaSiječanj[Naknade za isporuku]) -> 18.50 kn | L8: =SUBTOTAL(109,ProdajaSiječanj[Dobit/gubitak od prodaje]) -> 79.50 kn | M8: =SUBTOTAL(109,ProdajaSiječanj[Dobit/gubitak od isporuke]) -> 9.50 kn | N8: =SUBTOTAL(109,ProdajaSiječanj[Ukupna dobit/gubitak]) -> 89.00 kn
A9: Trend dobiti/gubitka

Sheet Veljača
A1: VELJAČA
A2: Internetska prodaja | C2: ID dražbe | D2: Opis artikla | E2: Nabavna cijena | F2: Prodajna cijena | G2: Online fees | H2: Naknade za PayPal | I2: Naknade za kreditnu karticu | J2: Naplata isporuke | K2: Naknade za isporuku | L2: Dobit/gubitak od prodaje | M2: Dobit/gubitak od isporuke | N2: Ukupna dobit/gubitak
A3: Godina | C3: TS020 | D3: Artikl 1 | E3: 10.00 kn | F3: 175.00 kn | G3: 3.00 kn | H3: 1.50 kn | I3: 0.00 kn | J3: 7.00 kn | K3: 5.00 kn | L3: =IFERROR(ProdajaVeljača[Prodajna cijena]-(ProdajaVeljača[Nabavna cijena]+ProdajaVeljača[Online fees]+ProdajaVeljača[Naknade za PayPal]+ProdajaVeljača[Naknade za kreditnu karticu]),"") -> 160.50 kn | M3: =ProdajaVeljača[Naplata isporuke]-ProdajaVeljača[Naknade za isporuku] -> 2.00 kn | N3: =ProdajaVeljača[Dobit/gubitak od prodaje]+ProdajaVeljača[Dobit/gubitak od isporuke] -> 162.50 kn
A4: =GodišnjaProdaja -> 2012 | C4: TS021 | D4: Artikl 2 | E4: 32.00 kn | F4: 100.00 kn | G4: 3.00 kn | I4: 3.20 kn | J4: 20.00 kn | K4: 13.00 kn | L4: =IFERROR(ProdajaVeljača[Prodajna cijena]-(ProdajaVeljača[Nabavna cijena]+ProdajaVeljača[Online fees]+ProdajaVeljača[Naknade za PayPal]+ProdajaVeljača[Naknade za kreditnu karticu]),"") -> 61.80 kn | M4: =ProdajaVeljača[Naplata isporuke]-ProdajaVeljača[Naknade za isporuku] -> 7.00 kn | N4: =ProdajaVeljača[Dobit/gubitak od prodaje]+ProdajaVeljača[Dobit/gubitak od isporuke] -> 68.80 kn
C5: TS022 | D5: Artikl 3 | E5: 3.00 kn | F5: 7.00 kn | G5: 2.00 kn | I5: 2.00 kn | J5: 0.50 kn | K5: 1.20 kn | L5: =IFERROR(ProdajaVeljača[Prodajna cijena]-(ProdajaVeljača[Nabavna cijena]+ProdajaVeljača[Online fees]+ProdajaVeljača[Naknade za PayPal]+ProdajaVeljača[Naknade za kreditnu karticu]),"") -> 0.00 kn | M5: =ProdajaVeljača[Naplata isporuke]-ProdajaVeljača[Naknade za isporuku] -> -0.70 kn | N5: =ProdajaVeljača[Dobit/gubitak od prodaje]+ProdajaVeljača[Dobit/gubitak od isporuke] -> -0.70 kn
A6: Ukupna dobit/gubitak | C6: TS023 | D6: Artikl 4 | E6: 22.00 kn | F6: 18.00 kn | G6: 3.00 kn | H6: 1.50 kn | J6: 7.00 kn | K6: 10.00 kn | L6: =IFERROR(ProdajaVeljača[Prodajna cijena]-(ProdajaVeljača[Nabavna cijena]+ProdajaVeljača[Online fees]+ProdajaVeljača[Naknade za PayPal]+ProdajaVeljača[Naknade za kreditnu karticu]),"") -> -8.50 kn | M6: =ProdajaVeljača[Naplata isporuke]-ProdajaVeljača[Naknade za isporuku] -> -3.00 kn | N6: =ProdajaVeljača[Dobit/gubitak od prodaje]+ProdajaVeljača[Dobit/gubitak od isporuke] -> -11.50 kn
A7: =ProdajaVeljača[[#Totals],[Ukupna dobit/gubitak]] -> 224.60 kn | C7: TS024 | D7: Artikl 5 | E7: 10.00 kn | F7: 12.00 kn | G7: 2.00 kn | H7: 1.50 kn | J7: 14.00 kn | K7: 7.00 kn | L7: =IFERROR(ProdajaVeljača[Prodajna cijena]-(ProdajaVeljača[Nabavna cijena]+ProdajaVeljača[Online fees]+ProdajaVeljača[Naknade za PayPal]+ProdajaVeljača[Naknade za kreditnu karticu]),"") -> -1.50 kn | M7: =ProdajaVeljača[Naplata isporuke]-ProdajaVeljača[Naknade za isporuku] -> 7.00 kn | N7: =ProdajaVeljača[Dobit/gubitak od prodaje]+ProdajaVeljača[Dobit/gubitak od isporuke] -> 5.50 kn
C8: Ukupno | D8: ="Prodani artikli: "&SUBTOTAL(103,ProdajaVeljača[Opis artikla]) -> Prodani artikli: 5 | E8: =SUBTOTAL(109,ProdajaVeljača[Nabavna cijena]) -> 77.00 kn | F8: =SUBTOTAL(109,ProdajaVeljača[Prodajna cijena]) -> 312.00 kn | G8: =SUBTOTAL(109,ProdajaVeljača[Online fees]) -> 13.00 kn | H8: =SUBTOTAL(109,ProdajaVeljača[Naknade za PayPal]) -> 4.50 kn | I8: =SUBTOTAL(109,ProdajaVeljača[Naknade za kreditnu karticu]) -> 5.20 kn | J8: =SUBTOTAL(109,ProdajaVeljača[Naplata isporuke]) -> 48.50 kn | K8: =SUBTOTAL(109,ProdajaVeljača[Naknade za isporuku]) -> 36.20 kn | L8: =SUBTOTAL(109,ProdajaVeljača[Dobit/gubitak od prodaje]) -> 212.30 kn | M8: =SUBTOTAL(109,ProdajaVeljača[Dobit/gubitak od isporuke]) -> 12.30 kn | N8: =SUBTOTAL(109,ProdajaVeljača[Ukupna dobit/gubitak]) -> 224.60 kn
A9: Trend dobiti/gubitka

Sheet Ožujak
A1: OŽUJAK
A2: Internetska prodaja | C2: ID dražbe | D2: Opis artikla | E2: Nabavna cijena | F2: Prodajna cijena | G2: Online fees | H2: Naknade za PayPal | I2: Naknade za kreditnu karticu | J2: Naplata isporuke | K2: Naknade za isporuku | L2: Dobit/gubitak od prodaje | M2: Dobit/gubitak od isporuke | N2: Ukupna dobit/gubitak
A3: Godina | L3: =IFERROR(ProdajaOžujak[Prodajna cijena]-(ProdajaOžujak[Nabavna cijena]+ProdajaOžujak[Online fees]+ProdajaOžujak[Naknade za PayPal]+ProdajaOžujak[Naknade za kreditnu karticu]),"") -> 0.00 kn | M3: =ProdajaOžujak[Naplata isporuke]-ProdajaOžujak[Naknade za isporuku] -> 0.00 kn | N3: =ProdajaOžujak[Dobit/gubitak od prodaje]+ProdajaOžujak[Dobit/gubitak od isporuke] -> 0.00 kn
A4: =GodišnjaProdaja -> 2012 | L4: =IFERROR(ProdajaOžujak[Prodajna cijena]-(ProdajaOžujak[Nabavna cijena]+ProdajaOžujak[Online fees]+ProdajaOžujak[Naknade za PayPal]+ProdajaOžujak[Naknade za kreditnu karticu]),"") -> 0.00 kn | M4: =ProdajaOžujak[Naplata isporuke]-ProdajaOžujak[Naknade za isporuku] -> 0.00 kn | N4: =ProdajaOžujak[Dobit/gubitak od prodaje]+ProdajaOžujak[Dobit/gubitak od isporuke] -> 0.00 kn
L5: =IFERROR(ProdajaOžujak[Prodajna cijena]-(ProdajaOžujak[Nabavna cijena]+ProdajaOžujak[Online fees]+ProdajaOžujak[Naknade za PayPal]+ProdajaOžujak[Naknade za kreditnu karticu]),"") -> 0.00 kn | M5: =ProdajaOžujak[Naplata isporuke]-ProdajaOžujak[Naknade za isporuku] -> 0.00 kn | N5: =ProdajaOžujak[Dobit/gubitak od prodaje]+ProdajaOžujak[Dobit/gubitak od isporuke] -> 0.00 kn
A6: Ukupna dobit/gubitak | L6: =IFERROR(ProdajaOžujak[Prodajna cijena]-(ProdajaOžujak[Nabavna cijena]+ProdajaOžujak[Online fees]+ProdajaOžujak[Naknade za PayPal]+ProdajaOžujak[Naknade za kreditnu karticu]),"") -> 0.00 kn | M6: =ProdajaOžujak[Naplata isporuke]-ProdajaOžujak[Naknade za isporuku] -> 0.00 kn | N6: =ProdajaOžujak[Dobit/gubitak od prodaje]+ProdajaOžujak[Dobit/gubitak od isporuke] -> 0.00 kn
A7: =ProdajaOžujak[[#Totals],[Ukupna dobit/gubitak]] -> 0.00 kn | L7: =IFERROR(ProdajaOžujak[Prodajna cijena]-(ProdajaOžujak[Nabavna cijena]+ProdajaOžujak[Online fees]+ProdajaOžujak[Naknade za PayPal]+ProdajaOžujak[Naknade za kreditnu karticu]),"") -> 0.00 kn | M7: =ProdajaOžujak[Naplata isporuke]-ProdajaOžujak[Naknade za isporuku] -> 0.00 kn | N7: =ProdajaOžujak[Dobit/gubitak od prodaje]+ProdajaOžujak[Dobit/gubitak od isporuke] -> 0.00 kn
C8: Ukupno | D8: ="Prodani artikli: "&SUBTOTAL(103,ProdajaOžujak[Opis artikla]) -> Prodani artikli: 0 | E8: =SUBTOTAL(109,ProdajaOžujak[Nabavna cijena]) -> 0.00 kn | F8: =SUBTOTAL(109,ProdajaOžujak[Prodajna cijena]) -> 0.00 kn | G8: =SUBTOTAL(109,ProdajaOžujak[Online fees]) -> 0.00 kn | H8: =SUBTOTAL(109,ProdajaOžujak[Naknade za PayPal]) -> 0.00 kn | I8: =SUBTOTAL(109,ProdajaOžujak[Naknade za kreditnu karticu]) -> 0.00 kn | J8: =SUBTOTAL(109,ProdajaOžujak[Naplata isporuke]) -> 0.00 kn | K8: =SUBTOTAL(109,ProdajaOžujak[Naknade za isporuku]) -> 0.00 kn | L8: =SUBTOTAL(109,ProdajaOžujak[Dobit/gubitak od prodaje]) -> 0.00 kn | M8: =SUBTOTAL(109,ProdajaOžujak[Dobit/gubitak od isporuke]) -> 0.00 kn | N8: =SUBTOTAL(109,ProdajaOžujak[Ukupna dobit/gubitak]) -> 0.00 kn
A9: Trend dobiti/gubitka

Sheet Travanj
A1: TRAVANJ
A2: Internetska prodaja | C2: ID dražbe | D2: Opis artikla | E2: Nabavna cijena | F2: Prodajna cijena | G2: Online fees | H2: Naknade za PayPal | I2: Naknade za kreditnu karticu | J2: Naplata isporuke | K2: Naknade za isporuku | L2: Dobit/gubitak od prodaje | M2: Dobit/gubitak od isporuke | N2: Ukupna dobit/gubitak
A3: Godina | M3: =ProdajaTravanj[Naplata isporuke]-ProdajaTravanj[Naknade za isporuku] -> 0.00 kn | N3: =ProdajaTravanj[Dobit/gubitak od prodaje]+ProdajaTravanj[Dobit/gubitak od isporuke] -> 0.00 kn
A4: =GodišnjaProdaja -> 2012 | M4: =ProdajaTravanj[Naplata isporuke]-ProdajaTravanj[Naknade za isporuku] -> 0.00 kn | N4: =ProdajaTravanj[Dobit/gubitak od prodaje]+ProdajaTravanj[Dobit/gubitak od isporuke] -> 0.00 kn
M5: =ProdajaTravanj[Naplata isporuke]-ProdajaTravanj[Naknade za isporuku] -> 0.00 kn | N5: =ProdajaTravanj[Dobit/gubitak od prodaje]+ProdajaTravanj[Dobit/gubitak od isporuke] -> 0.00 kn
A6: Ukupna dobit/gubitak | M6: =ProdajaTravanj[Naplata isporuke]-ProdajaTravanj[Naknade za isporuku] -> 0.00 kn | N6: =ProdajaTravanj[Dobit/gubitak od prodaje]+ProdajaTravanj[Dobit/gubitak od isporuke] -> 0.00 kn
A7: =ProdajaTravanj[[#Totals],[Ukupna dobit/gubitak]] -> 0.00 kn | M7: =ProdajaTravanj[Naplata isporuke]-ProdajaTravanj[Naknade za isporuku] -> 0.00 kn | N7: =ProdajaTravanj[Dobit/gubitak od prodaje]+ProdajaTravanj[Dobit/gubitak od isporuke] -> 0.00 kn
C8: Ukupno | D8: ="Prodani artikli: "&SUBTOTAL(103,ProdajaTravanj[Opis artikla]) -> Prodani artikli: 0 | E8: =SUBTOTAL(109,ProdajaTravanj[Nabavna cijena]) -> 0.00 kn | F8: =SUBTOTAL(109,ProdajaTravanj[Prodajna cijena]) -> 0.00 kn | G8: =SUBTOTAL(109,ProdajaTravanj[Online fees]) -> 0.00 kn | H8: =SUBTOTAL(109,ProdajaTravanj[Naknade za PayPal]) -> 0.00 kn | I8: =SUBTOTAL(109,ProdajaTravanj[Naknade za kreditnu karticu]) -> 0.00 kn | J8: =SUBTOTAL(109,ProdajaTravanj[Naplata isporuke]) -> 0.00 kn | K8: =SUBTOTAL(109,ProdajaTravanj[Naknade za isporuku]) -> 0.00 kn | L8: =SUBTOTAL(109,ProdajaTravanj[Dobit/gubitak od prodaje]) -> 0.00 kn | M8: =SUBTOTAL(109,ProdajaTravanj[Dobit/gubitak od isporuke]) -> 0.00 kn | N8: =SUBTOTAL(109,ProdajaTravanj[Ukupna dobit/gubitak]) -> 0.00 kn
A9: Trend dobiti/gubitka

Sheet Svibanj
A1: SVIBANJ
A2: Internetska prodaja | C2: ID dražbe | D2: Opis artikla | E2: Nabavna cijena | F2: Prodajna cijena | G2: Online fees | H2: Naknade za PayPal | I2: Naknade za kreditnu karticu | J2: Naplata isporuke | K2: Naknade za isporuku | L2: Dobit/gubitak od prodaje | M2: Dobit/gubitak od isporuke | N2: Ukupna dobit/gubitak
A3: Godina | M3: =ProdajaSvibanj[Naplata isporuke]-ProdajaSvibanj[Naknade za isporuku] -> 0.00 kn | N3: =ProdajaSvibanj[Dobit/gubitak od prodaje]+ProdajaSvibanj[Dobit/gubitak od isporuke] -> 0.00 kn
A4: =GodišnjaProdaja -> 2012 | M4: =ProdajaSvibanj[Naplata isporuke]-ProdajaSvibanj[Naknade za isporuku] -> 0.00 kn | N4: =ProdajaSvibanj[Dobit/gubitak od prodaje]+ProdajaSvibanj[Dobit/gubitak od isporuke] -> 0.00 kn
M5: =ProdajaSvibanj[Naplata isporuke]-ProdajaSvibanj[Naknade za isporuku] -> 0.00 kn | N5: =ProdajaSvibanj[Dobit/gubitak od prodaje]+ProdajaSvibanj[Dobit/gubitak od isporuke] -> 0.00 kn
A6: Ukupna dobit/gubitak | M6: =ProdajaSvibanj[Naplata isporuke]-ProdajaSvibanj[Naknade za isporuku] -> 0.00 kn | N6: =ProdajaSvibanj[Dobit/gubitak od prodaje]+ProdajaSvibanj[Dobit/gubitak od isporuke] -> 0.00 kn
A7: =ProdajaSvibanj[[#Totals],[Ukupna dobit/gubitak]] -> 0.00 kn | M7: =ProdajaSvibanj[Naplata isporuke]-ProdajaSvibanj[Naknade za isporuku] -> 0.00 kn | N7: =ProdajaSvibanj[Dobit/gubitak od prodaje]+ProdajaSvibanj[Dobit/gubitak od isporuke] -> 0.00 kn
C8: Ukupno | D8: ="Prodani artikli: "&SUBTOTAL(103,ProdajaSvibanj[Opis artikla]) -> Prodani artikli: 0 | E8: =SUBTOTAL(109,ProdajaSvibanj[Nabavna cijena]) -> 0.00 kn | F8: =SUBTOTAL(109,ProdajaSvibanj[Prodajna cijena]) -> 0.00 kn | G8: =SUBTOTAL(109,ProdajaSvibanj[Online fees]) -> 0.00 kn | H8: =SUBTOTAL(109,ProdajaSvibanj[Naknade za PayPal]) -> 0.00 kn | I8: =SUBTOTAL(109,ProdajaSvibanj[Naknade za kreditnu karticu]) -> 0.00 kn | J8: =SUBTOTAL(109,ProdajaSvibanj[Naplata isporuke]) -> 0.00 kn | K8: =SUBTOTAL(109,ProdajaSvibanj[Naknade za isporuku]) -> 0.00 kn | L8: =SUBTOTAL(109,ProdajaSvibanj[Dobit/gubitak od prodaje]) -> 0.00 kn | M8: =SUBTOTAL(109,ProdajaSvibanj[Dobit/gubitak od isporuke]) -> 0.00 kn | N8: =SUBTOTAL(109,ProdajaSvibanj[Ukupna dobit/gubitak]) -> 0.00 kn
A9: Trend dobiti/gubitka

Sheet Lipanj
A1: LIPANJ
A2: Internetska prodaja | C2: ID dražbe | D2: Opis artikla | E2: Nabavna cijena | F2: Prodajna cijena | G2: Online fees | H2: Naknade za PayPal | I2: Naknade za kreditnu karticu | J2: Naplata isporuke | K2: Naknade za isporuku | L2: Dobit/gubitak od prodaje | M2: Dobit/gubitak od isporuke | N2: Ukupna dobit/gubitak
A3: Godina | M3: =ProdajaLipanj[Naplata isporuke]-ProdajaLipanj[Naknade za isporuku] -> 0.00 kn | N3: =ProdajaLipanj[Dobit/gubitak od prodaje]+ProdajaLipanj[Dobit/gubitak od isporuke] -> 0.00 kn
A4: =GodišnjaProdaja -> 2012 | M4: =ProdajaLipanj[Naplata isporuke]-ProdajaLipanj[Naknade za isporuku] -> 0.00 kn | N4: =ProdajaLipanj[Dobit/gubitak od prodaje]+ProdajaLipanj[Dobit/gubitak od isporuke] -> 0.00 kn
M5: =ProdajaLipanj[Naplata isporuke]-ProdajaLipanj[Naknade za isporuku] -> 0.00 kn | N5: =ProdajaLipanj[Dobit/gubitak od prodaje]+ProdajaLipanj[Dobit/gubitak od isporuke] -> 0.00 kn
A6: Ukupna dobit/gubitak | M6: =ProdajaLipanj[Naplata isporuke]-ProdajaLipanj[Naknade za isporuku] -> 0.00 kn | N6: =ProdajaLipanj[Dobit/gubitak od prodaje]+ProdajaLipanj[Dobit/gubitak od isporuke] -> 0.00 kn
A7: =ProdajaLipanj[[#Totals],[Ukupna dobit/gubitak]] -> 0.00 kn | M7: =ProdajaLipanj[Naplata isporuke]-ProdajaLipanj[Naknade za isporuku] -> 0.00 kn | N7: =ProdajaLipanj[Dobit/gubitak od prodaje]+ProdajaLipanj[Dobit/gubitak od isporuke] -> 0.00 kn
C8: Ukupno | D8: ="Prodani artikli: "&SUBTOTAL(103,ProdajaLipanj[Opis artikla]) -> Prodani artikli: 0 | E8: =SUBTOTAL(109,ProdajaLipanj[Nabavna cijena]) -> 0.00 kn | F8: =SUBTOTAL(109,ProdajaLipanj[Prodajna cijena]) -> 0.00 kn | G8: =SUBTOTAL(109,ProdajaLipanj[Online fees]) -> 0.00 kn | H8: =SUBTOTAL(109,ProdajaLipanj[Naknade za PayPal]) -> 0.00 kn | I8: =SUBTOTAL(109,ProdajaLipanj[Naknade za kreditnu karticu]) -> 0.00 kn | J8: =SUBTOTAL(109,ProdajaLipanj[Naplata isporuke]) -> 0.00 kn | K8: =SUBTOTAL(109,ProdajaLipanj[Naknade za isporuku]) -> 0.00 kn | L8: =SUBTOTAL(109,ProdajaLipanj[Dobit/gubitak od prodaje]) -> 0.00 kn | M8: =SUBTOTAL(109,ProdajaLipanj[Dobit/gubitak od isporuke]) -> 0.00 kn | N8: =SUBTOTAL(109,ProdajaLipanj[Ukupna dobit/gubitak]) -> 0.00 kn
A9: Trend dobiti/gubitka

Sheet Srpanj
A1: SRPANJ
A2: Internetska prodaja | C2: ID dražbe | D2: Opis artikla | E2: Nabavna cijena | F2: Prodajna cijena | G2: Online fees | H2: Naknade za PayPal | I2: Naknade za kreditnu karticu | J2: Naplata isporuke | K2: Naknade za isporuku | L2: Dobit/gubitak od prodaje | M2: Dobit/gubitak od isporuke | N2: Ukupna dobit/gubitak
A3: Godina | M3: =ProdajaSrpanj[Naplata isporuke]-ProdajaSrpanj[Naknade za isporuku] -> 0.00 kn | N3: =ProdajaSrpanj[Dobit/gubitak od prodaje]+ProdajaSrpanj[Dobit/gubitak od isporuke] -> 0.00 kn
A4: =GodišnjaProdaja -> 2012 | M4: =ProdajaSrpanj[Naplata isporuke]-ProdajaSrpanj[Naknade za isporuku] -> 0.00 kn | N4: =ProdajaSrpanj[Dobit/gubitak od prodaje]+ProdajaSrpanj[Dobit/gubitak od isporuke] -> 0.00 kn
M5: =ProdajaSrpanj[Naplata isporuke]-ProdajaSrpanj[Naknade za isporuku] -> 0.00 kn | N5: =ProdajaSrpanj[Dobit/gubitak od prodaje]+ProdajaSrpanj[Dobit/gubitak od isporuke] -> 0.00 kn
A6: Ukupna dobit/gubitak | M6: =ProdajaSrpanj[Naplata isporuke]-ProdajaSrpanj[Naknade za isporuku] -> 0.00 kn | N6: =ProdajaSrpanj[Dobit/gubitak od prodaje]+ProdajaSrpanj[Dobit/gubitak od isporuke] -> 0.00 kn
A7: =ProdajaSrpanj[[#Totals],[Ukupna dobit/gubitak]] -> 0.00 kn | M7: =ProdajaSrpanj[Naplata isporuke]-ProdajaSrpanj[Naknade za isporuku] -> 0.00 kn | N7: =ProdajaSrpanj[Dobit/gubitak od prodaje]+ProdajaSrpanj[Dobit/gubitak od isporuke] -> 0.00 kn
C8: Ukupno | D8: ="Prodani artikli: "&SUBTOTAL(103,ProdajaSrpanj[Opis artikla]) -> Prodani artikli: 0 | E8: =SUBTOTAL(109,ProdajaSrpanj[Nabavna cijena]) -> 0.00 kn | F8: =SUBTOTAL(109,ProdajaSrpanj[Prodajna cijena]) -> 0.00 kn | G8: =SUBTOTAL(109,ProdajaSrpanj[Online fees]) -> 0.00 kn | H8: =SUBTOTAL(109,ProdajaSrpanj[Naknade za PayPal]) -> 0.00 kn | I8: =SUBTOTAL(109,ProdajaSrpanj[Naknade za kreditnu karticu]) -> 0.00 kn | J8: =SUBTOTAL(109,ProdajaSrpanj[Naplata isporuke]) -> 0.00 kn | K8: =SUBTOTAL(109,ProdajaSrpanj[Naknade za isporuku]) -> 0.00 kn | L8: =SUBTOTAL(109,ProdajaSrpanj[Dobit/gubitak od prodaje]) -> 0.00 kn | M8: =SUBTOTAL(109,ProdajaSrpanj[Dobit/gubitak od isporuke]) -> 0.00 kn | N8: =SUBTOTAL(109,ProdajaSrpanj[Ukupna dobit/gubitak]) -> 0.00 kn
A9: Trend dobiti/gubitka

Sheet Kolovoz
A1: KOLOVOZ
A2: Internetska prodaja | C2: ID dražbe | D2: Opis artikla | E2: Nabavna cijena | F2: Prodajna cijena | G2: Online fees | H2: Naknade za PayPal | I2: Naknade za kreditnu karticu | J2: Naplata isporuke | K2: Naknade za isporuku | L2: Dobit/gubitak od prodaje | M2: Dobit/gubitak od isporuke | N2: Ukupna dobit/gubitak
A3: Godina | M3: =ProdajaKolovoz[Naplata isporuke]-ProdajaKolovoz[Naknade za isporuku] -> 0.00 kn | N3: =ProdajaKolovoz[Dobit/gubitak od prodaje]+ProdajaKolovoz[Dobit/gubitak od isporuke] -> 0.00 kn
A4: =GodišnjaProdaja -> 2012 | M4: =ProdajaKolovoz[Naplata isporuke]-ProdajaKolovoz[Naknade za isporuku] -> 0.00 kn | N4: =ProdajaKolovoz[Dobit/gubitak od prodaje]+ProdajaKolovoz[Dobit/gubitak od isporuke] -> 0.00 kn
M5: =ProdajaKolovoz[Naplata isporuke]-ProdajaKolovoz[Naknade za isporuku] -> 0.00 kn | N5: =ProdajaKolovoz[Dobit/gubitak od prodaje]+ProdajaKolovoz[Dobit/gubitak od isporuke] -> 0.00 kn
A6: Ukupna dobit/gubitak | M6: =ProdajaKolovoz[Naplata isporuke]-ProdajaKolovoz[Naknade za isporuku] -> 0.00 kn | N6: =ProdajaKolovoz[Dobit/gubitak od prodaje]+ProdajaKolovoz[Dobit/gubitak od isporuke] -> 0.00 kn
A7: =ProdajaKolovoz[[#Totals],[Ukupna dobit/gubitak]] -> 0.00 kn | M7: =ProdajaKolovoz[Naplata isporuke]-ProdajaKolovoz[Naknade za isporuku] -> 0.00 kn | N7: =ProdajaKolovoz[Dobit/gubitak od prodaje]+ProdajaKolovoz[Dobit/gubitak od isporuke] -> 0.00 kn
C8: Ukupno | D8: ="Prodani artikli: "&SUBTOTAL(103,ProdajaKolovoz[Opis artikla]) -> Prodani artikli: 0 | E8: =SUBTOTAL(109,ProdajaKolovoz[Nabavna cijena]) -> 0.00 kn | F8: =SUBTOTAL(109,ProdajaKolovoz[Prodajna cijena]) -> 0.00 kn | G8: =SUBTOTAL(109,ProdajaKolovoz[Online fees]) -> 0.00 kn | H8: =SUBTOTAL(109,ProdajaKolovoz[Naknade za PayPal]) -> 0.00 kn | I8: =SUBTOTAL(109,ProdajaKolovoz[Naknade za kreditnu karticu]) -> 0.00 kn | J8: =SUBTOTAL(109,ProdajaKolovoz[Naplata isporuke]) -> 0.00 kn | K8: =SUBTOTAL(109,ProdajaKolovoz[Naknade za isporuku]) -> 0.00 kn | L8: =SUBTOTAL(109,ProdajaKolovoz[Dobit/gubitak od prodaje]) -> 0.00 kn | M8: =SUBTOTAL(109,ProdajaKolovoz[Dobit/gubitak od isporuke]) -> 0.00 kn | N8: =SUBTOTAL(109,ProdajaKolovoz[Ukupna dobit/gubitak]) -> 0.00 kn
A9: Trend dobiti/gubitka

Sheet Rujan
A1: RUJAN
A2: Internetska prodaja | C2: ID dražbe | D2: Opis artikla | E2: Nabavna cijena | F2: Prodajna cijena | G2: Online fees | H2: Naknade za PayPal | I2: Naknade za kreditnu karticu | J2: Naplata isporuke | K2: Naknade za isporuku | L2: Dobit/gubitak od prodaje | M2: Dobit/gubitak od isporuke | N2: Ukupna dobit/gubitak
A3: Godina | M3: =ProdajaRujan[Naplata isporuke]-ProdajaRujan[Naknade za isporuku] -> 0.00 kn | N3: =ProdajaRujan[Dobit/gubitak od prodaje]+ProdajaRujan[Dobit/gubitak od isporuke] -> 0.00 kn
A4: =GodišnjaProdaja -> 2012 | M4: =ProdajaRujan[Naplata isporuke]-ProdajaRujan[Naknade za isporuku] -> 0.00 kn | N4: =ProdajaRujan[Dobit/gubitak od prodaje]+ProdajaRujan[Dobit/gubitak od isporuke] -> 0.00 kn
M5: =ProdajaRujan[Naplata isporuke]-ProdajaRujan[Naknade za isporuku] -> 0.00 kn | N5: =ProdajaRujan[Dobit/gubitak od prodaje]+ProdajaRujan[Dobit/gubitak od isporuke] -> 0.00 kn
A6: Ukupna dobit/gubitak | M6: =ProdajaRujan[Naplata isporuke]-ProdajaRujan[Naknade za isporuku] -> 0.00 kn | N6: =ProdajaRujan[Dobit/gubitak od prodaje]+ProdajaRujan[Dobit/gubitak od isporuke] -> 0.00 kn
A7: =ProdajaRujan[[#Totals],[Ukupna dobit/gubitak]] -> 0.00 kn | M7: =ProdajaRujan[Naplata isporuke]-ProdajaRujan[Naknade za isporuku] -> 0.00 kn | N7: =ProdajaRujan[Dobit/gubitak od prodaje]+ProdajaRujan[Dobit/gubitak od isporuke] -> 0.00 kn
C8: Ukupno | D8: ="Prodani artikli: "&SUBTOTAL(103,ProdajaRujan[Opis artikla]) -> Prodani artikli: 0 | E8: =SUBTOTAL(109,ProdajaRujan[Nabavna cijena]) -> 0.00 kn | F8: =SUBTOTAL(109,ProdajaRujan[Prodajna cijena]) -> 0.00 kn | G8: =SUBTOTAL(109,ProdajaRujan[Online fees]) -> 0.00 kn | H8: =SUBTOTAL(109,ProdajaRujan[Naknade za PayPal]) -> 0.00 kn | I8: =SUBTOTAL(109,ProdajaRujan[Naknade za kreditnu karticu]) -> 0.00 kn | J8: =SUBTOTAL(109,ProdajaRujan[Naplata isporuke]) -> 0.00 kn | K8: =SUBTOTAL(109,ProdajaRujan[Naknade za isporuku]) -> 0.00 kn | L8: =SUBTOTAL(109,ProdajaRujan[Dobit/gubitak od prodaje]) -> 0.00 kn | M8: =SUBTOTAL(109,ProdajaRujan[Dobit/gubitak od isporuke]) -> 0.00 kn | N8: =SUBTOTAL(109,ProdajaRujan[Ukupna dobit/gubitak]) -> 0.00 kn
A9: Trend dobiti/gubitka

Sheet Listopad
A1: LISTOPAD
A2: Internetska prodaja | C2: ID dražbe | D2: Opis artikla | E2: Nabavna cijena | F2: Prodajna cijena | G2: Online fees | H2: Naknade za PayPal | I2: Naknade za kreditnu karticu | J2: Naplata isporuke | K2: Naknade za isporuku | L2: Dobit/gubitak od prodaje | M2: Dobit/gubitak od isporuke | N2: Ukupna dobit/gubitak
A3: Godina | M3: =ProdajaListopad[Naplata isporuke]-ProdajaListopad[Naknade za isporuku] -> 0.00 kn | N3: =ProdajaListopad[Dobit/gubitak od prodaje]+ProdajaListopad[Dobit/gubitak od isporuke] -> 0.00 kn
A4: =GodišnjaProdaja -> 2012 | M4: =ProdajaListopad[Naplata isporuke]-ProdajaListopad[Naknade za isporuku] -> 0.00 kn | N4: =ProdajaListopad[Dobit/gubitak od prodaje]+ProdajaListopad[Dobit/gubitak od isporuke] -> 0.00 kn
M5: =ProdajaListopad[Naplata isporuke]-ProdajaListopad[Naknade za isporuku] -> 0.00 kn | N5: =ProdajaListopad[Dobit/gubitak od prodaje]+ProdajaListopad[Dobit/gubitak od isporuke] -> 0.00 kn
A6: Ukupna dobit/gubitak | M6: =ProdajaListopad[Naplata isporuke]-ProdajaListopad[Naknade za isporuku] -> 0.00 kn | N6: =ProdajaListopad[Dobit/gubitak od prodaje]+ProdajaListopad[Dobit/gubitak od isporuke] -> 0.00 kn
A7: =ProdajaListopad[[#Totals],[Ukupna dobit/gubitak]] -> 0.00 kn | M7: =ProdajaListopad[Naplata isporuke]-ProdajaListopad[Naknade za isporuku] -> 0.00 kn | N7: =ProdajaListopad[Dobit/gubitak od prodaje]+ProdajaListopad[Dobit/gubitak od isporuke] -> 0.00 kn
C8: Ukupno | D8: ="Prodani artikli: "&SUBTOTAL(103,ProdajaListopad[Opis artikla]) -> Prodani artikli: 0 | E8: =SUBTOTAL(109,ProdajaListopad[Nabavna cijena]) -> 0.00 kn | F8: =SUBTOTAL(109,ProdajaListopad[Prodajna cijena]) -> 0.00 kn | G8: =SUBTOTAL(109,ProdajaListopad[Online fees]) -> 0.00 kn | H8: =SUBTOTAL(109,ProdajaListopad[Naknade za PayPal]) -> 0.00 kn | I8: =SUBTOTAL(109,ProdajaListopad[Naknade za kreditnu karticu]) -> 0.00 kn | J8: =SUBTOTAL(109,ProdajaListopad[Naplata isporuke]) -> 0.00 kn | K8: =SUBTOTAL(109,ProdajaListopad[Naknade za isporuku]) -> 0.00 kn | L8: =SUBTOTAL(109,ProdajaListopad[Dobit/gubitak od prodaje]) -> 0.00 kn | M8: =SUBTOTAL(109,ProdajaListopad[Dobit/gubitak od isporuke]) -> 0.00 kn | N8: =SUBTOTAL(109,ProdajaListopad[Ukupna dobit/gubitak]) -> 0.00 kn
A9: Trend dobiti/gubitka

Sheet Studeni
A1: STUDENI
A2: Internetska prodaja | C2: ID dražbe | D2: Opis artikla | E2: Nabavna cijena | F2: Prodajna cijena | G2: Online fees | H2: Naknade za PayPal | I2: Naknade za kreditnu karticu | J2: Naplata isporuke | K2: Naknade za isporuku | L2: Dobit/gubitak od prodaje | M2: Dobit/gubitak od isporuke | N2: Ukupna dobit/gubitak
A3: Godina | M3: =ProdajaStudeni[Naplata isporuke]-ProdajaStudeni[Naknade za isporuku] -> 0.00 kn | N3: =ProdajaStudeni[Dobit/gubitak od prodaje]+ProdajaStudeni[Dobit/gubitak od isporuke] -> 0.00 kn
A4: =GodišnjaProdaja -> 2012 | M4: =ProdajaStudeni[Naplata isporuke]-ProdajaStudeni[Naknade za isporuku] -> 0.00 kn | N4: =ProdajaStudeni[Dobit/gubitak od prodaje]+ProdajaStudeni[Dobit/gubitak od isporuke] -> 0.00 kn
M5: =ProdajaStudeni[Naplata isporuke]-ProdajaStudeni[Naknade za isporuku] -> 0.00 kn | N5: =ProdajaStudeni[Dobit/gubitak od prodaje]+ProdajaStudeni[Dobit/gubitak od isporuke] -> 0.00 kn
A6: Ukupna dobit/gubitak | M6: =ProdajaStudeni[Naplata isporuke]-ProdajaStudeni[Naknade za isporuku] -> 0.00 kn | N6: =ProdajaStudeni[Dobit/gubitak od prodaje]+ProdajaStudeni[Dobit/gubitak od isporuke] -> 0.00 kn
A7: =ProdajaStudeni[[#Totals],[Ukupna dobit/gubitak]] -> 0.00 kn | M7: =ProdajaStudeni[Naplata isporuke]-ProdajaStudeni[Naknade za isporuku] -> 0.00 kn | N7: =ProdajaStudeni[Dobit/gubitak od prodaje]+ProdajaStudeni[Dobit/gubitak od isporuke] -> 0.00 kn
C8: Ukupno | D8: ="Prodani artikli: "&SUBTOTAL(103,ProdajaStudeni[Opis artikla]) -> Prodani artikli: 0 | E8: =SUBTOTAL(109,ProdajaStudeni[Nabavna cijena]) -> 0.00 kn | F8: =SUBTOTAL(109,ProdajaStudeni[Prodajna cijena]) -> 0.00 kn | G8: =SUBTOTAL(109,ProdajaStudeni[Online fees]) -> 0.00 kn | H8: =SUBTOTAL(109,ProdajaStudeni[Naknade za PayPal]) -> 0.00 kn | I8: =SUBTOTAL(109,ProdajaStudeni[Naknade za kreditnu karticu]) -> 0.00 kn | J8: =SUBTOTAL(109,ProdajaStudeni[Naplata isporuke]) -> 0.00 kn | K8: =SUBTOTAL(109,ProdajaStudeni[Naknade za isporuku]) -> 0.00 kn | L8: =SUBTOTAL(109,ProdajaStudeni[Dobit/gubitak od prodaje]) -> 0.00 kn | M8: =SUBTOTAL(109,ProdajaStudeni[Dobit/gubitak od isporuke]) -> 0.00 kn | N8: =SUBTOTAL(109,ProdajaStudeni[Ukupna dobit/gubitak]) -> 0.00 kn
A9: Trend dobiti/gubitka

Sheet Prosinac
A1: PROSINAC
A2: Internetska prodaja | C2: ID dražbe | D2: Opis artikla | E2: Nabavna cijena | F2: Prodajna cijena | G2: Online fees | H2: Naknade za PayPal | I2: Naknade za kreditnu karticu | J2: Naplata isporuke | K2: Naknade za isporuku | L2: Dobit/gubitak od prodaje | M2: Dobit/gubitak od isporuke | N2: Ukupna dobit/gubitak
A3: Godina | M3: =ProdajaProsinac[Naplata isporuke]-ProdajaProsinac[Naknade za isporuku] -> 0.00 kn | N3: =ProdajaProsinac[Dobit/gubitak od prodaje]+ProdajaProsinac[Dobit/gubitak od isporuke] -> 0.00 kn
A4: =GodišnjaProdaja -> 2012 | M4: =ProdajaProsinac[Naplata isporuke]-ProdajaProsinac[Naknade za isporuku] -> 0.00 kn | N4: =ProdajaProsinac[Dobit/gubitak od prodaje]+ProdajaProsinac[Dobit/gubitak od isporuke] -> 0.00 kn
M5: =ProdajaProsinac[Naplata isporuke]-ProdajaProsinac[Naknade za isporuku] -> 0.00 kn | N5: =ProdajaProsinac[Dobit/gubitak od prodaje]+ProdajaProsinac[Dobit/gubitak od isporuke] -> 0.00 kn
A6: Ukupna dobit/gubitak | M6: =ProdajaProsinac[Naplata isporuke]-ProdajaProsinac[Naknade za isporuku] -> 0.00 kn | N6: =ProdajaProsinac[Dobit/gubitak od prodaje]+ProdajaProsinac[Dobit/gubitak od isporuke] -> 0.00 kn
A7: =ProdajaProsinac[[#Totals],[Ukupna dobit/gubitak]] -> 0.00 kn | M7: =ProdajaProsinac[Naplata isporuke]-ProdajaProsinac[Naknade za isporuku] -> 0.00 kn | N7: =ProdajaProsinac[Dobit/gubitak od prodaje]+ProdajaProsinac[Dobit/gubitak od isporuke] -> 0.00 kn
C8: Ukupno | D8: ="Prodani artikli: "&SUBTOTAL(103,ProdajaProsinac[Opis artikla]) -> Prodani artikli: 0 | E8: =SUBTOTAL(109,ProdajaProsinac[Nabavna cijena]) -> 0.00 kn | F8: =SUBTOTAL(109,ProdajaProsinac[Prodajna cijena]) -> 0.00 kn | G8: =SUBTOTAL(109,ProdajaProsinac[Online fees]) -> 0.00 kn | H8: =SUBTOTAL(109,ProdajaProsinac[Naknade za PayPal]) -> 0.00 kn | I8: =SUBTOTAL(109,ProdajaProsinac[Naknade za kreditnu karticu]) -> 0.00 kn | J8: =SUBTOTAL(109,ProdajaProsinac[Naplata isporuke]) -> 0.00 kn | K8: =SUBTOTAL(109,ProdajaProsinac[Naknade za isporuku]) -> 0.00 kn | L8: =SUBTOTAL(109,ProdajaProsinac[Dobit/gubitak od prodaje]) -> 0.00 kn | M8: =SUBTOTAL(109,ProdajaProsinac[Dobit/gubitak od isporuke]) -> 0.00 kn | N8: =SUBTOTAL(109,ProdajaProsinac[Ukupna dobit/gubitak]) -> 0.00 kn
A9: Trend dobiti/gubitka

Sheet Sažetak dosadašnje godine
A1: Ova godina do danas
A2: Sažetak | C2: Dobit/gubitak | H2: Dobit/gubitak za dosadašnju godinu
A3: Godina | H3: Mjesec | I3: Dobit/gubitak od prodaje | J3: Dobit/gubitak od isporuke | K3: Ukupna dobit/gubitak
A4: =GodišnjaProdaja -> 2012 | H4: Siječanj | I4: =ProdajaSiječanj[[#Totals],[Dobit/gubitak od prodaje]] -> 79.50 kn | J4: =ProdajaSiječanj[[#Totals],[Dobit/gubitak od isporuke]] -> 9.50 kn | K4: =IF(AND(SažetakTekućeGodine[[#This Row],[Dobit/gubitak od prodaje]]<>"",SažetakTekućeGodine[[#This Row],[Dobit/gubitak od isporuke]]<>""),SažetakTekućeGodine[[#This Row],[Dobit/gubitak od prodaje]]+SažetakTekućeGodine[[#This Row],[Dobit/gubitak od isporuke]],"") -> 89.00 kn
H5: Veljača | I5: =ProdajaVeljača[[#Totals],[Dobit/gubitak od prodaje]] -> 212.30 kn | J5: =ProdajaVeljača[[#Totals],[Dobit/gubitak od isporuke]] -> 12.30 kn | K5: =IF(AND(SažetakTekućeGodine[[#This Row],[Dobit/gubitak od prodaje]]<>"",SažetakTekućeGodine[[#This Row],[Dobit/gubitak od isporuke]]<>""),SažetakTekućeGodine[[#This Row],[Dobit/gubitak od prodaje]]+SažetakTekućeGodine[[#This Row],[Dobit/gubitak od isporuke]],"") -> 224.60 kn
A6: Trend mjesečne prodaje: | H6: Ožujak | I6: =ProdajaOžujak[[#Totals],[Dobit/gubitak od prodaje]] -> 0.00 kn | J6: =ProdajaOžujak[[#Totals],[Dobit/gubitak od isporuke]] -> 0.00 kn | K6: =IF(AND(SažetakTekućeGodine[[#This Row],[Dobit/gubitak od prodaje]]<>"",SažetakTekućeGodine[[#This Row],[Dobit/gubitak od isporuke]]<>""),SažetakTekućeGodine[[#This Row],[Dobit/gubitak od prodaje]]+SažetakTekućeGodine[[#This Row],[Dobit/gubitak od isporuke]],"") -> 0.00 kn
H7: Travanj | I7: =ProdajaTravanj[[#Totals],[Dobit/gubitak od prodaje]] -> 0.00 kn | J7: =ProdajaTravanj[[#Totals],[Dobit/gubitak od isporuke]] -> 0.00 kn | K7: =IF(AND(SažetakTekućeGodine[[#This Row],[Dobit/gubitak od prodaje]]<>"",SažetakTekućeGodine[[#This Row],[Dobit/gubitak od isporuke]]<>""),SažetakTekućeGodine[[#This Row],[Dobit/gubitak od prodaje]]+SažetakTekućeGodine[[#This Row],[Dobit/gubitak od isporuke]],"") -> 0.00 kn
H8: Svibanj | I8: =ProdajaSvibanj[[#Totals],[Dobit/gubitak od prodaje]] -> 0.00 kn | J8: =ProdajaSvibanj[[#Totals],[Dobit/gubitak od isporuke]] -> 0.00 kn | K8: =IF(AND(SažetakTekućeGodine[[#This Row],[Dobit/gubitak od prodaje]]<>"",SažetakTekućeGodine[[#This Row],[Dobit/gubitak od isporuke]]<>""),SažetakTekućeGodine[[#This Row],[Dobit/gubitak od prodaje]]+SažetakTekućeGodine[[#This Row],[Dobit/gubitak od isporuke]],"") -> 0.00 kn
H9: Lipanj | I9: =ProdajaLipanj[[#Totals],[Dobit/gubitak od prodaje]] -> 0.00 kn | J9: =ProdajaLipanj[[#Totals],[Dobit/gubitak od isporuke]] -> 0.00 kn | K9: =IF(AND(SažetakTekućeGodine[[#This Row],[Dobit/gubitak od prodaje]]<>"",SažetakTekućeGodine[[#This Row],[Dobit/gubitak od isporuke]]<>""),SažetakTekućeGodine[[#This Row],[Dobit/gubitak od prodaje]]+SažetakTekućeGodine[[#This Row],[Dobit/gubitak od isporuke]],"") -> 0.00 kn
H10: Srpanj | I10: =ProdajaSrpanj[[#Totals],[Dobit/gubitak od prodaje]] -> 0.00 kn | J10: =ProdajaSrpanj[[#Totals],[Dobit/gubitak od isporuke]] -> 0.00 kn | K10: =IF(AND(SažetakTekućeGodine[[#This Row],[Dobit/gubitak od prodaje]]<>"",SažetakTekućeGodine[[#This Row],[Dobit/gubitak od isporuke]]<>""),SažetakTekućeGodine[[#This Row],[Dobit/gubitak od prodaje]]+SažetakTekućeGodine[[#This Row],[Dobit/gubitak od isporuke]],"") -> 0.00 kn
H11: Kolovoz | I11: =ProdajaKolovoz[[#Totals],[Dobit/gubitak od prodaje]] -> 0.00 kn | J11: =ProdajaKolovoz[[#Totals],[Dobit/gubitak od isporuke]] -> 0.00 kn | K11: =IF(AND(SažetakTekućeGodine[[#This Row],[Dobit/gubitak od prodaje]]<>"",SažetakTekućeGodine[[#This Row],[Dobit/gubitak od isporuke]]<>""),SažetakTekućeGodine[[#This Row],[Dobit/gubitak od prodaje]]+SažetakTekućeGodine[[#This Row],[Dobit/gubitak od isporuke]],"") -> 0.00 kn
H12: Rujan | I12: =ProdajaRujan[[#Totals],[Dobit/gubitak od prodaje]] -> 0.00 kn | J12: =ProdajaRujan[[#Totals],[Dobit/gubitak od isporuke]] -> 0.00 kn | K12: =IF(AND(SažetakTekućeGodine[[#This Row],[Dobit/gubitak od prodaje]]<>"",SažetakTekućeGodine[[#This Row],[Dobit/gubitak od isporuke]]<>""),SažetakTekućeGodine[[#This Row],[Dobit/gubitak od prodaje]]+SažetakTekućeGodine[[#This Row],[Dobit/gubitak od isporuke]],"") -> 0.00 kn
H13: Listopad | I13: =ProdajaListopad[[#Totals],[Dobit/gubitak od prodaje]] -> 0.00 kn | J13: =ProdajaListopad[[#Totals],[Dobit/gubitak od isporuke]] -> 0.00 kn | K13: =IF(AND(SažetakTekućeGodine[[#This Row],[Dobit/gubitak od prodaje]]<>"",SažetakTekućeGodine[[#This Row],[Dobit/gubitak od isporuke]]<>""),SažetakTekućeGodine[[#This Row],[Dobit/gubitak od prodaje]]+SažetakTekućeGodine[[#This Row],[Dobit/gubitak od isporuke]],"") -> 0.00 kn
H14: Studeni | I14: =ProdajaStudeni[[#Totals],[Dobit/gubitak od prodaje]] -> 0.00 kn | J14: =ProdajaStudeni[[#Totals],[Dobit/gubitak od isporuke]] -> 0.00 kn | K14: =IF(AND(SažetakTekućeGodine[[#This Row],[Dobit/gubitak od prodaje]]<>"",SažetakTekućeGodine[[#This Row],[Dobit/gubitak od isporuke]]<>""),SažetakTekućeGodine[[#This Row],[Dobit/gubitak od prodaje]]+SažetakTekućeGodine[[#This Row],[Dobit/gubitak od isporuke]],"") -> 0.00 kn
H15: Prosinac | I15: =ProdajaProsinac[[#Totals],[Dobit/gubitak od prodaje]] -> 0.00 kn | J15: =ProdajaProsinac[[#Totals],[Dobit/gubitak od isporuke]] -> 0.00 kn | K15: =IF(AND(SažetakTekućeGodine[[#This Row],[Dobit/gubitak od prodaje]]<>"",SažetakTekućeGodine[[#This Row],[Dobit/gubitak od isporuke]]<>""),SažetakTekućeGodine[[#This Row],[Dobit/gubitak od prodaje]]+SažetakTekućeGodine[[#This Row],[Dobit/gubitak od isporuke]],"") -> 0.00 kn
H16: Totals | I16: =SUBTOTAL(109,SažetakTekućeGodine[Dobit/gubitak od prodaje]) -> 291.80 kn | J16: =SUBTOTAL(109,SažetakTekućeGodine[Dobit/gubitak od isporuke]) -> 21.80 kn | K16: =SUBTOTAL(109,SažetakTekućeGodine[Ukupna dobit/gubitak]) -> 313.60 kn
